[Event "*** Titled Tuesday 3|2 Blitz"]
[Site "Chess.com"]
[Date "2015.02.24"]
[Round "5"]
[White "MinhGTrAn"]
[Black "GedoGluperd"]
[Result "1-0"]
[WhiteElo "2459"]
[BlackElo "2234"]
[TimeControl "180+2"]
[EndTime "12:01:28 PST"]
[Termination "MinhGTrAn won by resignation"]

1. d4 {[%clk 0:03:00]} 1... Nf6 {[%clk 0:02:58.9]} 2. Bg5 {[%clk 0:03:00.7]}
2... d5 {[%clk 0:02:58.2]} 3. Bxf6 {[%clk 0:03:01.8]} 3... exf6 {[%clk
0:02:57.5]} 4. e3 {[%clk 0:03:02.8]} 4... f5 {[%clk 0:02:57.7]} 5. g3 {[%clk
0:03:04]} 5... Nd7 {[%clk 0:02:58.5]} 6. Bg2 {[%clk 0:03:05.6]} 6... c6 {[%clk
0:03:00.1]} 7. Ne2 {[%clk 0:03:07.1]} 7... Nf6 {[%clk 0:03:01.6]} 8. O-O {[%clk
0:03:08.6]} 8... h5 {[%clk 0:02:56.8]} 9. h4 {[%clk 0:03:06.2]} 9... Ne4 {[%clk
0:02:57.2]} 10. Nd2 {[%clk 0:03:07.4]} 10... Be7 {[%clk 0:02:56.9]} 11. c4
{[%clk 0:03:06]} 11... Be6 {[%clk 0:02:54.2]} 12. Nf4 {[%clk 0:03:06.8]} 12...
g5 {[%clk 0:02:49.6]} 13. hxg5 {[%clk 0:03:01.1]} 13... Bxg5 {[%clk 0:02:50.2]}
14. cxd5 {[%clk 0:02:44.8]} 14... cxd5 {[%clk 0:02:47.5]} 15. Nf3 {[%clk
0:01:51.1]} 15... h4 {[%clk 0:02:36.2]} 16. Qa4+ {[%clk 0:00:52.3]} 16... Kf8
{[%clk 0:02:31.2]} 17. gxh4 {[%clk 0:00:32.2]} 17... Bxh4 {[%clk 0:02:29.3]} 18.
Qb4+ {[%clk 0:00:25.1]} 18... Be7 {[%clk 0:02:15.9]} 19. Qxb7 {[%clk 0:00:26.4]}
19... Bd6 {[%clk 0:01:28.8]} 20. Rfc1 {[%clk 0:00:25.7]} 20... Bxf4 {[%clk
0:01:27.7]} 21. exf4 {[%clk 0:00:26.9]} 21... Kg7 {[%clk 0:01:24.5]} 22. Qc7
{[%clk 0:00:21.6]} 22... Qg8 {[%clk 0:01:09.9]} 23. Ng5 {[%clk 0:00:20]} 23...
Kg6 {[%clk 0:00:52.8]} 24. Bxe4 {[%clk 0:00:09.7]} 24... dxe4 {[%clk 0:00:51.6]}
25. Rc6 {[%clk 0:00:09.3]} 25... Re8 {[%clk 0:00:45.3]} 26. d5 {[%clk
0:00:10.2]} 26... Rc8 {[%clk 0:00:32.9]} 27. Qd6 {[%clk 0:00:07.3]} 27... Rxc6
{[%clk 0:00:33.9]} 28. Qxc6 {[%clk 0:00:08]} 28... Qg7 {[%clk 0:00:31.2]} 29.
dxe6 {[%clk 0:00:08.9]} 29... f6 {[%clk 0:00:32.6]} 30. Kf1 {[%clk 0:00:04.7]}
30... Qh6 {[%clk 0:00:33.8]} 31. Ke2 {[%clk 0:00:04.5]} 31... Qh5+ {[%clk
0:00:34.4]} 32. Kd2 {[%clk 0:00:05.8]} 32... Rd8+ {[%clk 0:00:35.4]} 33. Kc3
{[%clk 0:00:07.1]} 33... Qe2 {[%clk 0:00:33.7]} 34. Kb3 {[%clk 0:00:06.1]} 34...
Rd3+ {[%clk 0:00:29.8]} 35. Ka4 {[%clk 0:00:06.9]} 35... Qxb2 {[%clk 0:00:28.4]}
36. Qe8+ {[%clk 0:00:07.9]} 36... Kg7 {[%clk 0:00:21.7]} 37. Qf7+ {[%clk
0:00:08.2]} 1-0

[Event "*** Titled Tuesday 3|2 Blitz"]
[Site "Chess.com"]
[Date "2015.02.24"]
[Round "5"]
[White "VerdeNotte"]
[Black "tigrangharamian"]
[Result "0-1"]
[WhiteElo "2516"]
[BlackElo "2532"]
[TimeControl "180+2"]
[EndTime "12:01:35 PST"]
[Termination "tigrangharamian won by resignation"]

1. e4 {[%clk 0:03:00]} 1... c5 {[%clk 0:02:57.1]} 2. Nc3 {[%clk 0:03:00.7]} 2...
a6 {[%clk 0:02:57.9]} 3. g3 {[%clk 0:03:00.8]} 3... b5 {[%clk 0:02:58.5]} 4. Bg2
{[%clk 0:03:02]} 4... Bb7 {[%clk 0:02:59.1]} 5. Nge2 {[%clk 0:03:03]} 5... b4
{[%clk 0:02:59.9]} 6. Na4 {[%clk 0:02:59.5]} 6... e6 {[%clk 0:02:59.9]} 7. d4
{[%clk 0:02:58.5]} 7... Nf6 {[%clk 0:02:55.6]} 8. d5 {[%clk 0:02:48.1]} 8...
exd5 {[%clk 0:02:50.7]} 9. exd5 {[%clk 0:02:49.1]} 9... d6 {[%clk 0:02:43.6]}
10. O-O {[%clk 0:02:49.2]} 10... Be7 {[%clk 0:02:43.2]} 11. a3 {[%clk
0:02:48.9]} 11... a5 {[%clk 0:02:39.7]} 12. c4 {[%clk 0:02:49.9]} 12... O-O
{[%clk 0:02:38.6]} 13. b3 {[%clk 0:02:50.7]} 13... Nbd7 {[%clk 0:02:34.2]} 14.
Bb2 {[%clk 0:02:50.2]} 14... Ne8 {[%clk 0:02:33.5]} 15. Bh3 {[%clk 0:02:45.6]}
15... Bc8 {[%clk 0:02:22.9]} 16. Nf4 {[%clk 0:02:31.2]} 16... Bf6 {[%clk
0:02:14.2]} 17. Qe2 {[%clk 0:02:18.3]} 17... Bxb2 {[%clk 0:02:01.4]} 18. Nxb2
{[%clk 0:02:15.6]} 18... Ne5 {[%clk 0:01:53.9]} 19. Bxc8 {[%clk 0:02:01]} 19...
Qxc8 {[%clk 0:01:49.6]} 20. Nbd3 {[%clk 0:02:01.3]} 20... Nxd3 {[%clk
0:01:49.7]} 21. Qxd3 {[%clk 0:02:02.5]} 21... Nf6 {[%clk 0:01:50.1]} 22. Kg2
{[%clk 0:01:52.7]} 22... Re8 {[%clk 0:01:49.7]} 23. h3 {[%clk 0:01:30.8]} 23...
Qd7 {[%clk 0:01:46.1]} 24. Ra2 {[%clk 0:01:21.8]} 24... Qe7 {[%clk 0:01:18]} 25.
Rfa1 {[%clk 0:01:16.5]} 25... bxa3 {[%clk 0:01:15.3]} 26. Rxa3 {[%clk 0:01:17]}
26... g5 {[%clk 0:01:14.3]} 27. Qf5 {[%clk 0:01:08.6]} 27... gxf4 {[%clk
0:01:14.2]} 28. Qxf4 {[%clk 0:01:07.2]} 28... Qe4+ {[%clk 0:01:10.3]} 29. Qxe4
{[%clk 0:01:08.5]} 29... Nxe4 {[%clk 0:01:12.2]} 30. Rxa5 {[%clk 0:01:09.5]}
30... Rab8 {[%clk 0:01:09.5]} 31. R1a3 {[%clk 0:00:54.3]} 31... Rb6 {[%clk
0:00:50.9]} 32. Ra7 {[%clk 0:00:45.8]} 32... Nd2 {[%clk 0:00:47.1]} 33. Rd7
{[%clk 0:00:19.5]} 33... Nxb3 {[%clk 0:00:46.4]} 34. Raa7 {[%clk 0:00:20.1]}
34... Rf8 {[%clk 0:00:47.8]} 35. Rdb7 {[%clk 0:00:16.7]} 35... Rxb7 {[%clk
0:00:48]} 36. Rxb7 {[%clk 0:00:18.6]} 36... Nd2 {[%clk 0:00:49.7]} 37. f4 {[%clk
0:00:16.7]} 37... Nxc4 {[%clk 0:00:50.1]} 38. Kf3 {[%clk 0:00:18.1]} 38... Re8
{[%clk 0:00:51.5]} 39. Kg4 {[%clk 0:00:18.9]} 39... Ne3+ {[%clk 0:00:52.4]} 40.
Kg5 {[%clk 0:00:20.2]} 40... Kg7 {[%clk 0:00:51.4]} 41. Rd7 {[%clk 0:00:19.5]}
41... h6+ {[%clk 0:00:50.4]} 42. Kh5 {[%clk 0:00:20.2]} 42... Nxd5 {[%clk
0:00:51.4]} 43. Rxd6 {[%clk 0:00:21]} 43... Nf6+ {[%clk 0:00:51.6]} 44. Kh4
{[%clk 0:00:22.5]} 44... Rc8 {[%clk 0:00:51.3]} 45. Rd2 {[%clk 0:00:22]} 45...
c4 {[%clk 0:00:52.5]} 46. g4 {[%clk 0:00:22.6]} 46... c3 {[%clk 0:00:53.6]} 47.
Rc2 {[%clk 0:00:24.2]} 47... Nd5 {[%clk 0:00:54.2]} 48. g5 {[%clk 0:00:25.2]}
48... Ne3 {[%clk 0:00:53.4]} 49. Rc1 {[%clk 0:00:26.7]} 49... c2 {[%clk
0:00:53.7]} 50. Kh5 {[%clk 0:00:28.2]} 50... hxg5 {[%clk 0:00:54.7]} 51. Kxg5
{[%clk 0:00:27.6]} 51... Rc5+ {[%clk 0:00:49.2]} 52. Kh4 {[%clk 0:00:28.8]}
52... Rd5 {[%clk 0:00:49.9]} 53. f5 {[%clk 0:00:29.2]} 53... Rd1 {[%clk
0:00:50.2]} 54. f6+ {[%clk 0:00:29.7]} 54... Kxf6 {[%clk 0:00:50.8]} 0-1

[Event "*** Titled Tuesday 3|2 Blitz"]
[Site "Chess.com"]
[Date "2015.02.24"]
[Round "5"]
[White "Tilicheev_Viacheslav"]
[Black "AndreyOstrovskiy"]
[Result "1-0"]
[WhiteElo "2548"]
[BlackElo "2334"]
[TimeControl "180+2"]
[EndTime "12:01:38 PST"]
[Termination "Tilicheev_Viacheslav won by resignation"]

1. e4 {[%clk 0:03:00]} 1... e5 {[%clk 0:02:58.9]} 2. Nf3 {[%clk 0:02:59.8]} 2...
Nc6 {[%clk 0:02:59.9]} 3. Nc3 {[%clk 0:02:59.2]} 3... Nf6 {[%clk 0:03:00.2]} 4.
Nxe5 {[%clk 0:03:00.7]} 4... Nxe5 {[%clk 0:03:00.5]} 5. d4 {[%clk 0:03:02.3]}
5... Ng6 {[%clk 0:02:56.7]} 6. e5 {[%clk 0:03:03]} 6... Bb4 {[%clk 0:02:57.6]}
7. exf6 {[%clk 0:03:02.1]} 7... Qxf6 {[%clk 0:02:57.7]} 8. Bd3 {[%clk
0:02:59.5]} 8... O-O {[%clk 0:02:58.5]} 9. Be3 {[%clk 0:02:50.3]} 9... d5 {[%clk
0:02:56.7]} 10. O-O {[%clk 0:02:50.7]} 10... Bxc3 {[%clk 0:02:56.8]} 11. bxc3
{[%clk 0:02:51.5]} 11... Bf5 {[%clk 0:02:58.4]} 12. c4 {[%clk 0:02:51.5]} 12...
Bxd3 {[%clk 0:02:49.6]} 13. cxd3 {[%clk 0:02:53.4]} 13... Qf5 {[%clk 0:02:34.4]}
14. Rb1 {[%clk 0:02:44.2]} 14... b6 {[%clk 0:02:34]} 15. Rb5 {[%clk 0:02:45.1]}
15... c6 {[%clk 0:02:34.6]} 16. Rb3 {[%clk 0:02:46.7]} 16... h5 {[%clk
0:02:31.4]} 17. a4 {[%clk 0:02:47.1]} 17... h4 {[%clk 0:02:30.3]} 18. h3 {[%clk
0:02:47.7]} 18... Rad8 {[%clk 0:02:18.7]} 19. Qg4 {[%clk 0:02:46.9]} 19... Qxg4
{[%clk 0:02:18.9]} 20. hxg4 {[%clk 0:02:48.8]} 20... f5 {[%clk 0:02:00.9]} 21.
gxf5 {[%clk 0:02:48.4]} 21... Rxf5 {[%clk 0:02:02.4]} 22. Rc1 {[%clk 0:02:30.6]}
22... Rd7 {[%clk 0:01:55.8]} 23. Ra3 {[%clk 0:02:22.2]} 23... Nf4 {[%clk
0:01:55.6]} 24. Kf1 {[%clk 0:02:17.6]} 24... Kf7 {[%clk 0:01:47.3]} 25. a5
{[%clk 0:02:18.6]} 25... bxa5 {[%clk 0:01:43.3]} 26. Rxa5 {[%clk 0:02:18.5]}
26... Nxd3 {[%clk 0:01:42.3]} 27. Rca1 {[%clk 0:02:16.6]} 27... Ke6 {[%clk
0:01:30.7]} 28. cxd5+ {[%clk 0:02:03.1]} 28... cxd5 {[%clk 0:01:27.7]} 29. Rxa7
{[%clk 0:01:59.3]} 29... Rxa7 {[%clk 0:01:27.1]} 30. Rxa7 {[%clk 0:02:01.2]}
30... g5 {[%clk 0:01:23.1]} 31. Kg1 {[%clk 0:01:31.9]} 31... Nf4 {[%clk
0:01:20.2]} 32. Kh2 {[%clk 0:01:25.8]} 32... g4 {[%clk 0:01:11.2]} 33. Rh7
{[%clk 0:01:18.5]} 33... h3 {[%clk 0:01:09.5]} 34. gxh3 {[%clk 0:01:07.7]} 34...
gxh3 {[%clk 0:01:04.5]} 35. Rh4 {[%clk 0:01:06.1]} 35... Ng2 {[%clk 0:00:44.7]}
36. Rxh3 {[%clk 0:01:02.5]} 36... Nxe3 {[%clk 0:00:43.4]} 37. Rxe3+ {[%clk
0:00:30.8]} 37... Kf6 {[%clk 0:00:34.2]} 38. Kg3 {[%clk 0:00:32.7]} 38... Rg5+
{[%clk 0:00:28.9]} 39. Kf3 {[%clk 0:00:32.8]} 39... Rf5+ {[%clk 0:00:29.8]} 40.
Ke2 {[%clk 0:00:34.2]} 40... Rf4 {[%clk 0:00:26.1]} 41. Rf3 {[%clk 0:00:35.5]}
41... Kf5 {[%clk 0:00:27.5]} 42. Ke3 {[%clk 0:00:36.9]} 42... Rxf3+ {[%clk
0:00:25.6]} 43. Kxf3 {[%clk 0:00:38.8]} 43... Kg5 {[%clk 0:00:25.4]} 44. Kg3
{[%clk 0:00:40.3]} 44... Kf5 {[%clk 0:00:26.7]} 45. f3 {[%clk 0:00:41.9]} 45...
Kg5 {[%clk 0:00:22.2]} 46. f4+ {[%clk 0:00:43.3]} 46... Kf5 {[%clk 0:00:23.5]}
47. Kf3 {[%clk 0:00:44.9]} 47... Kf6 {[%clk 0:00:21.8]} 48. Kg4 {[%clk
0:00:46.8]} 48... Kg6 {[%clk 0:00:22.4]} 49. f5+ {[%clk 0:00:48.3]} 49... Kf6
{[%clk 0:00:23.6]} 50. Kf4 {[%clk 0:00:49.7]} 1-0

[Event "*** Titled Tuesday 3|2 Blitz"]
[Site "Chess.com"]
[Date "2015.02.24"]
[Round "5"]
[White "juniortay"]
[Black "CraiggoryC"]
[Result "1-0"]
[WhiteElo "2206"]
[BlackElo "1975"]
[TimeControl "180+2"]
[EndTime "12:02:37 PST"]
[Termination "juniortay won by resignation"]

1. e4 {[%clk 0:03:00]} 1... e6 {[%clk 0:02:57.8]} 2. Nf3 {[%clk 0:03:00.3]} 2...
d5 {[%clk 0:02:59.1]} 3. Nc3 {[%clk 0:03:02.2]} 3... Nf6 {[%clk 0:03:00.2]} 4.
e5 {[%clk 0:03:03.2]} 4... Nfd7 {[%clk 0:03:01.8]} 5. d4 {[%clk 0:03:05]} 5...
c5 {[%clk 0:03:03.1]} 6. Bg5 {[%clk 0:03:05.6]} 6... Qb6 {[%clk 0:03:00.7]} 7.
dxc5 {[%clk 0:03:06.6]} 7... Bxc5 {[%clk 0:02:59.3]} 8. Qd2 {[%clk 0:03:08.1]}
8... Nc6 {[%clk 0:02:56]} 9. Na4 {[%clk 0:03:08.8]} 9... Qb4 {[%clk 0:02:28.7]}
10. Nxc5 {[%clk 0:03:05.4]} 10... Qxd2+ {[%clk 0:02:21.5]} 11. Bxd2 {[%clk
0:03:05.9]} 11... Nxc5 {[%clk 0:02:23.1]} 12. O-O-O {[%clk 0:03:01.3]} 12... Bd7
{[%clk 0:02:17.6]} 13. Be3 {[%clk 0:02:57.8]} 13... b6 {[%clk 0:02:04.4]} 14.
Kb1 {[%clk 0:02:53.9]} 14... a5 {[%clk 0:01:54.2]} 15. c4 {[%clk 0:02:53]} 15...
Ne7 {[%clk 0:01:33.8]} 16. Rc1 {[%clk 0:02:49.1]} 16... Rc8 {[%clk 0:01:33.5]}
17. Nd4 {[%clk 0:02:42.1]} 17... dxc4 {[%clk 0:01:27]} 18. Bxc4 {[%clk
0:02:37.9]} 18... Nd5 {[%clk 0:01:13.8]} 19. Bxd5 {[%clk 0:02:33.6]} 19... exd5
{[%clk 0:01:15.1]} 20. Rhd1 {[%clk 0:02:25]} 20... O-O {[%clk 0:01:08.5]} 21.
Ne2 {[%clk 0:02:25.5]} 21... Bf5+ {[%clk 0:01:07.3]} 22. Ka1 {[%clk 0:02:25.7]}
22... Nd3 {[%clk 0:01:08]} 23. Rc3 {[%clk 0:02:14.2]} 23... Nxe5 {[%clk
0:00:57.9]} 24. Rxd5 {[%clk 0:02:03.5]} 24... f6 {[%clk 0:00:52.9]} 25. Bxb6
{[%clk 0:02:04.4]} 25... Bd3 {[%clk 0:00:34.8]} 26. Rdxd3 {[%clk 0:01:58]} 26...
Nxd3 {[%clk 0:00:33.5]} 27. Rxd3 {[%clk 0:01:59.9]} 27... Rc2 {[%clk 0:00:27.7]}
28. Nc3 {[%clk 0:01:53]} 28... Rb8 {[%clk 0:00:21.6]} 29. Kb1 {[%clk 0:01:43.3]}
29... Rxc3 {[%clk 0:00:18.6]} 30. Rxc3 {[%clk 0:01:44.6]} 30... Rxb6 {[%clk
0:00:20.2]} 31. Kc2 {[%clk 0:01:45.3]} 31... Kf7 {[%clk 0:00:20.9]} 32. Rc5
{[%clk 0:01:46.1]} 32... Ra6 {[%clk 0:00:20.9]} 33. Kc3 {[%clk 0:01:46.1]} 33...
Kg6 {[%clk 0:00:22.1]} 34. Kc4 {[%clk 0:01:47.5]} 34... h5 {[%clk 0:00:22.4]}
35. Kb5 {[%clk 0:01:48.6]} 35... Re6 {[%clk 0:00:23.1]} 36. Rc2 {[%clk
0:01:39.5]} 36... Re5+ {[%clk 0:00:24.4]} 37. Kb6 {[%clk 0:01:39.5]} 37... Kh6
{[%clk 0:00:23.3]} 38. a3 {[%clk 0:01:39.8]} 38... a4 {[%clk 0:00:22.9]} 39. Kc6
{[%clk 0:01:27.9]} 39... Kg6 {[%clk 0:00:23.3]} 40. Kd6 {[%clk 0:01:29]} 40...
Kh6 {[%clk 0:00:21.7]} 41. h4 {[%clk 0:01:29.7]} 41... Kg6 {[%clk 0:00:19.8]}
42. f3 {[%clk 0:01:20]} 42... Rb5 {[%clk 0:00:19.9]} 43. Kc6 {[%clk 0:01:18.7]}
43... Re5 {[%clk 0:00:20.6]} 44. Kb6 {[%clk 0:01:19.7]} 44... Rd5 {[%clk
0:00:21.3]} 45. g4 {[%clk 0:01:16.7]} 45... hxg4 {[%clk 0:00:21.6]} 46. fxg4
{[%clk 0:01:17.9]} 46... f5 {[%clk 0:00:22.6]} 47. gxf5+ {[%clk 0:01:17.4]}
47... Rxf5 {[%clk 0:00:23.2]} 48. Rg2+ {[%clk 0:01:17.7]} 48... Kh5 {[%clk
0:00:23.8]} 49. Rxg7 {[%clk 0:01:17.7]} 49... Kxh4 {[%clk 0:00:24.5]} 50. Ra7
{[%clk 0:01:16.2]} 50... Rf4 {[%clk 0:00:23.8]} 51. Kb5 {[%clk 0:01:16.7]} 51...
Rf2 {[%clk 0:00:24.5]} 52. Rxa4+ {[%clk 0:01:17.4]} 52... Kg5 {[%clk 0:00:25.9]}
53. Rb4 {[%clk 0:01:17.4]} 53... Kf6 {[%clk 0:00:26.4]} 54. a4 {[%clk
0:01:18.8]} 54... Ke7 {[%clk 0:00:27.5]} 55. a5 {[%clk 0:01:20.2]} 55... Kd8
{[%clk 0:00:27.8]} 56. a6 {[%clk 0:01:21.3]} 56... Kc7 {[%clk 0:00:28.8]} 57.
Rc4+ {[%clk 0:01:16.8]} 57... Kb8 {[%clk 0:00:29.7]} 58. b4 {[%clk 0:01:18.5]}
58... Rf5+ {[%clk 0:00:30.1]} 59. Rc5 {[%clk 0:01:20]} 59... Rf6 {[%clk
0:00:30.9]} 60. Rc6 {[%clk 0:01:20.4]} 60... Rf5+ {[%clk 0:00:31.8]} 61. Kb6
{[%clk 0:01:21.3]} 61... Rf4 {[%clk 0:00:32.1]} 62. b5 {[%clk 0:01:22.4]} 62...
Rf7 {[%clk 0:00:31.2]} 63. Rh6 {[%clk 0:01:22.3]} 63... Rb7+ {[%clk 0:00:31.9]}
64. Ka5 {[%clk 0:01:18.7]} 64... Rg7 {[%clk 0:00:29.4]} 65. Rh5 {[%clk
0:01:13.3]} 65... Rg1 {[%clk 0:00:28.2]} 66. Rh8+ {[%clk 0:01:09.2]} 66... Kc7
{[%clk 0:00:29.4]} 67. b6+ {[%clk 0:01:10]} 67... Kc6 {[%clk 0:00:30.1]} 68.
Rc8+ {[%clk 0:01:09.5]} 68... Kd7 {[%clk 0:00:31.1]} 69. b7 {[%clk 0:01:09.4]}
69... Ra1+ {[%clk 0:00:31.8]} 70. Kb6 {[%clk 0:01:10.4]} 70... Rb1+ {[%clk
0:00:32.9]} 71. Ka7 {[%clk 0:01:11.7]} 71... Ra1 {[%clk 0:00:20.3]} 72. b8=Q
{[%clk 0:01:11]} 72... Rxa6+ {[%clk 0:00:20.9]} 73. Kxa6 {[%clk 0:01:11.3]} 1-0

[Event "*** Titled Tuesday 3|2 Blitz"]
[Site "Chess.com"]
[Date "2015.02.24"]
[Round "5"]
[White "FytNob"]
[Black "oggy1984"]
[Result "0-1"]
[WhiteElo "1852"]
[BlackElo "2205"]
[TimeControl "180+2"]
[EndTime "12:02:39 PST"]
[Termination "oggy1984 won by resignation"]

1. d4 {[%clk 0:03:00]} 1... Nf6 {[%clk 0:02:57.4]} 2. c4 {[%clk 0:03:00.4]} 2...
e6 {[%clk 0:02:58.3]} 3. Nf3 {[%clk 0:03:01.2]} 3... b6 {[%clk 0:02:58.5]} 4. g3
{[%clk 0:03:02.1]} 4... Bb7 {[%clk 0:02:56]} 5. Bg2 {[%clk 0:03:03.4]} 5... Be7
{[%clk 0:02:56.2]} 6. O-O {[%clk 0:03:04.2]} 6... O-O {[%clk 0:02:56.6]} 7. Nc3
{[%clk 0:02:50.9]} 7... Ne4 {[%clk 0:02:56.6]} 8. Qc2 {[%clk 0:02:48.3]} 8...
Nxc3 {[%clk 0:02:56.6]} 9. Qxc3 {[%clk 0:02:49]} 9... Be4 {[%clk 0:02:53.9]} 10.
Rd1 {[%clk 0:02:46.7]} 10... d6 {[%clk 0:02:48.9]} 11. b4 {[%clk 0:02:43.7]}
11... f5 {[%clk 0:02:30.7]} 12. Bb2 {[%clk 0:02:42.8]} 12... Bf6 {[%clk
0:02:31.3]} 13. Nd2 {[%clk 0:02:20]} 13... Bxg2 {[%clk 0:02:31.2]} 14. Kxg2
{[%clk 0:02:21.9]} 14... c5 {[%clk 0:02:21]} 15. Qe3 {[%clk 0:02:12.8]} 15...
Qc8 {[%clk 0:01:53.8]} 16. bxc5 {[%clk 0:02:10.9]} 16... bxc5 {[%clk 0:01:50.7]}
17. Rac1 {[%clk 0:02:06.1]} 17... Nc6 {[%clk 0:01:47.1]} 18. Nf3 {[%clk
0:02:01.7]} 18... Qb7 {[%clk 0:01:41.5]} 19. Qxe6+ {[%clk 0:01:55.3]} 19... Kh8
{[%clk 0:01:41.9]} 20. Ba1 {[%clk 0:01:56.1]} 20... Bxd4 {[%clk 0:01:28.8]} 21.
e3 {[%clk 0:01:39.8]} 21... Bxa1 {[%clk 0:01:25.6]} 22. Rxa1 {[%clk 0:01:41.7]}
22... Ne5 {[%clk 0:01:07.9]} 23. Qd5 {[%clk 0:01:39.1]} 23... Qxd5 {[%clk
0:01:08.2]} 24. cxd5 {[%clk 0:01:41]} 24... Nxf3 {[%clk 0:01:02.6]} 25. Kxf3
{[%clk 0:01:42.9]} 25... Rab8 {[%clk 0:01:04]} 26. Rab1 {[%clk 0:01:43.5]} 26...
g6 {[%clk 0:01:03.2]} 27. Rb3 {[%clk 0:01:33.6]} 27... Rxb3 {[%clk 0:01:03.2]}
28. axb3 {[%clk 0:01:35.5]} 28... Rb8 {[%clk 0:01:02.9]} 29. Ra1 {[%clk
0:01:36.7]} 29... Rxb3 {[%clk 0:01:00.9]} 30. Rxa7 {[%clk 0:01:36.7]} 30... Rd3
{[%clk 0:01:01.5]} 31. Ra8+ {[%clk 0:01:35.5]} 31... Kg7 {[%clk 0:01:02]} 32.
Ra7+ {[%clk 0:01:37.4]} 32... Kh6 {[%clk 0:01:00.8]} 33. h4 {[%clk 0:01:36]}
33... Rxd5 {[%clk 0:01:01]} 34. Rc7 {[%clk 0:01:28.3]} 34... Rd2 {[%clk
0:00:59.4]} 35. Rc6 {[%clk 0:01:27.1]} 35... Kh5 {[%clk 0:00:49.7]} 36. Rc7
{[%clk 0:01:27.7]} 36... h6 {[%clk 0:00:50.3]} 37. Rc6 {[%clk 0:01:28.8]} 37...
g5 {[%clk 0:00:50.1]} 38. hxg5 {[%clk 0:01:24.1]} 38... hxg5 {[%clk 0:00:50.9]}
39. e4 {[%clk 0:01:25.7]} 39... Rd3+ {[%clk 0:00:49.2]} 40. Ke2 {[%clk
0:01:23.5]} 40... fxe4 {[%clk 0:00:50.1]} 41. Rc8 {[%clk 0:01:25]} 41... Kg4
{[%clk 0:00:47.3]} 42. Rc7 {[%clk 0:01:17]} 42... Kf5 {[%clk 0:00:47.5]} 43.
Rf7+ {[%clk 0:01:17.8]} 43... Ke6 {[%clk 0:00:45.3]} 44. Rg7 {[%clk 0:01:18.4]}
44... Kf6 {[%clk 0:00:46.3]} 45. Rc7 {[%clk 0:01:19.3]} 45... g4 {[%clk
0:00:44.2]} 46. Rc8 {[%clk 0:01:19.5]} 46... Ke6 {[%clk 0:00:41.7]} 47. Rg8
{[%clk 0:01:20.2]} 47... d5 {[%clk 0:00:39.2]} 48. Rxg4 {[%clk 0:01:20.5]} 48...
c4 {[%clk 0:00:36.9]} 49. Rg6+ {[%clk 0:01:20.5]} 49... Ke5 {[%clk 0:00:37.9]}
50. Rc6 {[%clk 0:01:20.4]} 50... Kd4 {[%clk 0:00:38]} 51. g4 {[%clk 0:01:18.5]}
51... Ra3 {[%clk 0:00:38.8]} 52. g5 {[%clk 0:01:18.8]} 52... Ra2+ {[%clk
0:00:39.9]} 53. Kf1 {[%clk 0:01:15.4]} 53... Kd3 {[%clk 0:00:35.9]} 54. g6
{[%clk 0:01:15.1]} 54... Ra7 {[%clk 0:00:34.3]} 55. f4 {[%clk 0:01:10.3]} 55...
exf3 {[%clk 0:00:31.5]} 56. Kf2 {[%clk 0:01:11.7]} 56... d4 {[%clk 0:00:32.5]}
57. Kxf3 {[%clk 0:01:09.1]} 57... c3 {[%clk 0:00:33.7]} 58. Kf4 {[%clk
0:01:04.4]} 58... Kd2 {[%clk 0:00:33.3]} 59. Ke4 {[%clk 0:00:57.6]} 59... d3
{[%clk 0:00:33.6]} 60. Rd6 {[%clk 0:00:58.1]} 60... Re7+ {[%clk 0:00:33.6]} 61.
Kf5 {[%clk 0:00:57.9]} 61... c2 {[%clk 0:00:34.2]} 62. Kf6 {[%clk 0:00:58.9]}
62... Ra7 {[%clk 0:00:33]} 63. g7 {[%clk 0:00:53.9]} 63... Rxg7 {[%clk
0:00:32.5]} 64. Kxg7 {[%clk 0:00:55.8]} 64... c1=Q {[%clk 0:00:32.8]} 65. Rg6
{[%clk 0:00:56.5]} 65... Qc7+ {[%clk 0:00:31.8]} 66. Kh6 {[%clk 0:00:57.3]}
66... Ke3 {[%clk 0:00:32.4]} 67. Rg3+ {[%clk 0:00:57.7]} 67... Qxg3 {[%clk
0:00:32.3]} 0-1